bitfinex/quotes_BTCUSD_20220304
["timestamp","ask_amount","ask_price","bid_price","bid_amount"]
[1646427439922,0.07556161,39589.0,39583.0,0.53281384]
[1646427440321,0.07556161,39589.0,39583.0,0.42594521]
[1646427440520,0.12556161,39589.0,39583.0,0.29202439]
[1646427441522,0.113203,39589.0,39583.0,0.29202439]
[1646427441724,0.12875458,39589.0,39582.0,0.00032048]
[1646427441921,0.01126645,39587.0,39582.0,0.00032048]
[1646427442121,0.063211,39586.0,39582.0,0.00032048]
[1646427442569,0.113211,39586.0,39582.0,0.00032048]
[1646427444869,0.113211,39586.0,39583.0,0.27221308]
[1646427445069,0.113211,39586.0,39582.0,0.00032048]
[1646427445470,0.11285322,39586.0,39582.0,0.00032048]
[1646427445670,0.11285322,39586.0,39584.0,0.32586244]
[1646427446073,0.05,39586.0,39584.0,0.32586244]
[1646427446310,0.01126645,39587.0,39584.0,0.32586244]
[1646427446915,0.01178748,39586.0,39584.0,0.30542944]
[1646427447110,0.113204,39589.0,39584.0,0.30542944]
[1646427447310,0.063204,39589.0,39584.0,0.30542944]
[1646427447509,0.07911673,39589.0,39584.0,0.30542944]
[1646427447709,0.01312806,39587.0,39584.0,0.30542944]
[1646427447911,0.01496759,39586.0,39584.0,0.30542944]
[1646427448108,0.01210547,39586.0,39585.0,0.11750175]
[1646427448309,0.0124149,39587.0,39584.0,0.31432944]
[1646427449109,0.0124149,39587.0,39584.0,0.30542944]
[1646427449309,0.0124149,39587.0,39585.0,0.15539544]
[1646427449512,0.0124149,39587.0,39585.0,0.00279464]
[1646427449910,0.01029371,39586.0,39585.0,0.00279464]
[1646427454222,0.01029371,39586.0,39583.0,0.27973058]
[1646427454418,0.07349971,39586.0,39583.0,0.27973058]
[1646427455417,0.07349971,39586.0,39583.0,0.00209598]
[1646427455619,0.126416,39585.0,39583.0,0.00209598]
[1646427459161,0.126416,39585.0,39582.0,0.00399915]
[1646427459560,0.126416,39585.0,39583.0,0.2357344]
[1646427460363,0.126416,39585.0,39582.0,0.00199915]
[1646427461412,0.126416,39585.0,39583.0,0.24349776]
[1646427461613,0.126416,39585.0,39582.0,0.00199915]
[1646427464315,0.126416,39585.0,39584.0,0.00209834]
[1646427468365,0.126416,39585.0,39584.0,9.834e-05]
[1646427468817,0.126416,39585.0,39582.0,0.00171937]
[1646427468818,0.576416,39585.0,39582.0,0.00171937]
[1646427469014,0.93510355,39585.0,39582.0,0.00171937]
[1646427469315,1.05,39583.0,39571.0,0.2269]
[1646427469518,0.1264515,39581.0,39577.0,0.00037877]
[1646427469713,0.05,39580.0,39577.0,0.00037877]
[1646427470319,0.05,39580.0,39574.0,0.001]
[1646427470516,0.05,39580.0,39575.0,0.18030056]
[1646427470741,0.05,39580.0,39575.0,0.03148483]
[1646427471116,0.35,39580.0,39575.0,0.03148483]
[1646427471515,0.35,39580.0,39574.0,0.001]
[1646427471516,1.12645847,39579.0,39574.0,0.001]
[1646427471716,1.12645847,39579.0,39574.0,0.00163132]
[1646427471717,0.063231,39577.0,39574.0,0.00163132]
[1646427471916,0.063231,39577.0,39574.0,0.00063132]
[1646427471917,0.489702,39576.0,39574.0,0.00063132]
[1646427472117,0.3,39575.0,39574.0,0.00063132]
[1646427472555,0.3,39575.0,39562.0,0.52512151]
[1646427472760,0.063235,39570.0,39562.0,0.52512151]
[1646427472960,0.3,39575.0,39571.0,0.23662296]
[1646427473158,0.47,39576.0,39571.0,0.23662296]
[1646427473559,0.3,39575.0,39571.0,0.23662296]
[1646427473960,0.47,39576.0,39573.0,0.22855694]
[1646427474160,0.18969846,39575.0,39573.0,0.22855694]
[1646427474360,0.126468,39575.0,39571.0,0.23662296]
[1646427476424,0.06323201,39574.0,39571.0,0.23662296]
[1646427476623,0.25292401,39574.0,39571.0,0.23662296]
[1646427476823,0.37938401,39574.0,39571.0,0.23662296]
[1646427477023,0.05,39573.0,39571.0,0.23662296]
[1646427477224,0.05,39573.0,39570.0,0.29609535]
[1646427477425,0.05,39573.0,39570.0,0.55426253]
[1646427477625,0.113228,39573.0,39570.0,0.55426253]
[1646427477826,0.063224,39572.0,39570.0,0.55426253]
[1646427479326,0.063224,39572.0,39571.0,0.371846]
[1646427479626,0.063224,39572.0,39570.0,0.55426253]
[1646427480661,0.063224,39572.0,39570.0,0.29609535]
[1646427481763,0.063224,39572.0,39570.0,0.56223453]
[1646427481961,0.063224,39572.0,39570.0,0.29609535]
[1646427482961,0.063224,39572.0,39570.0,0.51380445]
[1646427483811,0.063224,39572.0,39571.0,0.14]
[1646427484011,0.063224,39572.0,39570.0,0.56380445]
[1646427484611,0.063224,39572.0,39571.0,0.371846]
[1646427485012,0.063224,39572.0,39570.0,0.56380445]
[1646427485712,0.063224,39572.0,39570.0,0.29609535]
[1646427485918,0.063224,39572.0,39571.0,0.371846]
[1646427486212,0.063224,39572.0,39567.0,0.23907991]
[1646427486413,0.063224,39572.0,39568.0,0.371846]
[1646427486613,0.063224,39572.0,39570.0,0.371846]
[1646427488266,0.063224,39572.0,39570.0,1.199146]
[1646427489566,0.063224,39572.0,39571.0,1.249146]
[1646427490067,0.063224,39572.0,39571.0,0.471846]
[1646427490567,0.063224,39572.0,39571.0,0.09252]
[1646427490766,0.063224,39572.0,39571.0,0.37591777]
[1646427490971,0.063224,39572.0,39570.0,0.371255]
[1646427491416,0.063224,39572.0,39568.0,0.00056196]
[1646427491417,0.189683,39571.0,39568.0,0.00056196]
[1646427491819,0.189683,39571.0,39567.0,0.23844848]
[1646427492215,0.189683,39571.0,39568.0,0.421255]
[1646427492416,0.01213629,39569.0,39568.0,0.421255]
[1646427492615,0.063221,39570.0,39568.0,0.561255]
[1646427492814,0.063221,39570.0,39568.0,0.421255]
[1646427493015,0.063221,39570.0,39568.0,0.66866916]
[1646427493215,0.063221,39570.0,39568.0,0.421255]
[1646427493815,0.063221,39570.0,39568.0,0.371255]
[1646427494416,0.063221,39570.0,39568.0,0.6029408]
[1646427494615,0.06130284,39570.0,39568.0,0.5979408]
[1646427495964,0.189683,39571.0,39569.0,1.0773]
[1646427496169,0.063224,39572.0,39570.0,1.448555]
[1646427496363,0.063224,39572.0,39571.0,1.495264]
[1646427496564,0.063224,39572.0,39571.0,1.195264]
[1646427497264,0.063224,39572.0,39571.0,0.417964]
[1646427497465,0.063224,39572.0,39570.0,0.05]
[1646427497868,0.063224,39572.0,39569.0,0.371264]
[1646427498268,0.063224,39572.0,39571.0,0.371264]
[1646427498468,0.063224,39572.0,39569.0,0.371264]
[1646427498671,0.126436,39571.0,39569.0,0.371264]
[1646427498916,0.126436,39571.0,39570.0,0.60793573]
[1646427500614,0.126436,39571.0,39570.0,0.65793573]
[1646427501019,0.063206,39573.0,39570.0,0.28667173]
[1646427501217,0.063206,39573.0,39571.0,0.371264]
[1646427501814,0.063206,39573.0,39572.0,1.148564]
[1646427502663,0.063206,39573.0,39572.0,1.288564]
[1646427502862,0.063206,39573.0,39572.0,1.148564]
[1646427503065,0.126426,39578.0,39577.0,0.30009116]
[1646427504863,0.12608632,39578.0,39577.0,0.30009116]
[1646427507512,0.12552978,39578.0,39577.0,0.30009116]
[1646427510164,0.12552978,39578.0,39577.0,0.19892878]
[1646427510369,0.49679378,39578.0,39577.0,0.19892878]
[1646427510865,0.12552978,39578.0,39574.0,0.00063132]
[1646427511067,0.12552978,39578.0,39573.0,0.001]
[1646427511466,0.12552978,39578.0,39574.0,0.00063132]
[1646427511673,0.497707,39577.0,39574.0,0.00063132]
[1646427511869,0.195316,39576.0,39574.0,0.00063132]
[1646427512067,0.189671,39576.0,39574.0,0.00063132]
[1646427512266,0.189671,39576.0,39570.0,0.002]
[1646427512669,0.01324406,39575.0,39571.0,0.00063136]
[1646427512869,0.189671,39576.0,39572.0,0.23716584]
[1646427512870,0.01031376,39574.0,39572.0,0.23716584]
[1646427513069,0.189671,39576.0,39572.0,0.23716584]
[1646427513070,0.01333476,39573.0,39572.0,0.23716584]
[1646427513270,0.189671,39576.0,39572.0,0.23716584]
[1646427513470,0.063222,39575.0,39572.0,0.23716584]
[1646427514312,0.063219,39574.0,39572.0,0.23716584]
[1646427516313,0.063219,39574.0,39573.0,0.371264]
[1646427516513,0.063219,39574.0,39572.0,0.23716584]
[1646427516816,0.063219,39574.0,39573.0,0.371264]
[1646427517013,0.063219,39574.0,39572.0,0.23716584]
[1646427517212,0.063219,39574.0,39573.0,0.371264]
[1646427517412,0.063219,39574.0,39572.0,0.23716584]
[1646427518070,0.063219,39574.0,39573.0,0.371264]
[1646427519674,0.063219,39574.0,39573.0,1.148564]
[1646427523310,0.0732437,39574.0,39573.0,1.148564]
[1646427523512,0.0732437,39574.0,39573.0,0.7773]
[1646427524111,0.0732437,39574.0,39572.0,0.23716584]
[1646427524510,0.0732437,39574.0,39570.0,0.371264]
[1646427524716,0.0732437,39574.0,39570.0,0.77793139]
[1646427525066,0.0732437,39574.0,39570.0,0.44859939]
[1646427525467,0.0732437,39574.0,39570.0,0.447968]
[1646427525665,0.0732437,39574.0,39568.0,0.27159809]
[1646427525865,0.0732437,39574.0,39569.0,0.371264]
[1646427526267,0.73727694,39573.0,39567.0,0.20650791]
[1646427526468,0.063236,39571.0,39564.0,0.00409576]
[1646427526667,0.489705,39570.0,39564.0,0.004]
[1646427526869,0.252941,39570.0,39562.0,0.20731795]
[1646427527068,0.252941,39570.0,39560.0,0.7773]
[1646427527272,0.26983957,39567.0,39560.0,0.7773]
[1646427527468,0.063238,39566.0,39564.0,0.14]
[1646427527672,0.063238,39566.0,39565.0,0.14]
[1646427527868,0.063238,39566.0,39561.0,0.1]
[1646427528068,0.063238,39566.0,39565.0,0.14]
[1646427528470,0.063238,39566.0,39565.0,0.511264]
[1646427529117,0.063238,39566.0,39565.0,0.14]
[1646427530321,0.363238,39566.0,39565.0,0.14]
[1646427530518,0.734502,39566.0,39565.0,0.14]
[1646427530721,1.11320373,39566.0,39565.0,0.14]
[1646427530923,0.005645,39564.0,39559.0,2.07e-06]
[1646427531125,0.005645,39564.0,39558.0,0.00034928]
[1646427531126,0.371264,39560.0,39558.0,0.00034928]
[1646427531324,0.405645,39559.0,39558.0,0.00034928]
[1646427531526,6.826e-05,39556.0,39545.0,0.25813489]
[1646427531721,6.826e-05,39556.0,39543.0,0.25813489]
[1646427531722,0.126542,39554.0,39543.0,0.25813489]
[1646427531920,0.371264,39548.0,39545.0,0.5]
[1646427532121,0.26779918,39549.0,39539.0,0.50617276]
[1646427532323,0.063267,39547.0,39539.0,0.25813489]
[1646427532567,0.371264,39546.0,39539.0,0.25813489]
[1646427532766,0.189819,39547.0,39538.0,0.25813489]
[1646427532965,0.489828,39548.0,39538.0,0.25813489]
[1646427532966,0.06306062,39548.0,39539.0,1.4]
[1646427533166,0.26779918,39549.0,39538.0,0.25813489]
[1646427533366,0.189822,39550.0,39537.0,0.25813489]
[1646427533367,0.005645,39542.0,39537.0,0.25813489]
[1646427533569,0.07774717,39542.0,39536.0,0.25813489]
[1646427533766,0.126542,39540.0,39536.0,0.25813489]
[1646427534067,0.126542,39540.0,39534.0,0.87301924]
[1646427534266,0.126542,39540.0,39534.0,0.57301924]
[1646427534466,0.126542,39540.0,39535.0,0.28580737]
[1646427535070,0.126542,39540.0,39536.0,0.16048565]
[1646427535468,0.126542,39540.0,39536.0,0.063269]
[1646427535869,0.14180084,39541.0,39537.0,0.371264]
[1646427536070,0.01525884,39541.0,39540.0,0.25060451]
[1646427536328,0.063263,39544.0,39540.0,0.31386651]
[1646427536727,0.063263,39544.0,39540.0,0.25060451]
[1646427537325,0.063263,39544.0,39538.0,0.371264]
[1646427537834,0.15006826,39556.0,39542.0,0.14088961]
[1646427537835,0.063258,39546.0,39542.0,0.14088961]
[1646427538027,0.063258,39546.0,39537.0,0.00052419]
[1646427538226,0.063258,39546.0,39538.0,0.371264]
[1646427538426,0.063258,39546.0,39539.0,0.3163835]
[1646427538627,0.063258,39546.0,39540.0,0.371264]
[1646427538832,0.063258,39546.0,39541.0,0.00063216]
[1646427539028,0.063258,39546.0,39542.0,0.371264]
[1646427539429,0.063258,39546.0,39541.0,0.00063216]
[1646427541663,0.371264,39545.0,39541.0,0.00063216]
[1646427542265,0.24057746,39542.0,39541.0,0.00063216]
[1646427542864,0.61184146,39542.0,39541.0,0.00063216]
[1646427543067,0.61184146,39542.0,39539.0,0.00052416]
[1646427543068,0.005645,39540.0,39539.0,0.00052416]
[1646427543263,0.13087957,39540.0,39539.0,0.00052416]
[1646427543465,0.13087957,39540.0,39521.0,0.20704346]
[1646427543466,1.3,39539.0,39521.0,0.20704346]
[1646427543813,0.063298,39536.0,39523.0,1.01911853]
[1646427544016,0.063298,39536.0,39525.0,0.7773]
[1646427544211,0.063298,39536.0,39532.0,0.00031456]
[1646427544412,0.063298,39536.0,39535.0,0.14]
[1646427544612,0.0633,39536.0,39535.0,0.371264]
[1646427544814,0.189813,39542.0,39535.0,1.148564]
[1646427545014,0.4724,39551.0,39536.0,1.148564]
[1646427545015,0.7215,39551.0,39536.0,1.148564]
[1646427545213,0.7215,39551.0,39536.0,0.7773]
[1646427545214,0.1999,39537.0,39536.0,0.7773]
[1646427545814,0.1999,39537.0,39535.0,0.24454039]
[1646427546114,0.1998,39536.0,39535.0,0.24454039]
[1646427546316,0.1998,39536.0,39535.0,0.71580439]
[1646427546715,0.2098247,39536.0,39535.0,1.49310439]
[1646427546916,0.2098247,39536.0,39535.0,0.34454039]
[1646427547117,0.2187247,39536.0,39535.0,1.49310439]
[1646427547316,0.2098247,39536.0,39535.0,0.71580439]
[1646427547567,0.2098247,39536.0,39535.0,0.96958504]
[1646427547767,0.2098247,39536.0,39535.0,0.71580439]
[1646427548066,0.2098247,39536.0,39535.0,1.49310439]
[1646427548968,0.2098247,39536.0,39535.0,0.24348252]
[1646427549169,0.2098247,39536.0,39535.0,0.1]
[1646427549468,0.2098247,39536.0,39535.0,0.471264]
[1646427549673,0.2098247,39536.0,39535.0,0.371264]
[1646427551319,0.2098247,39536.0,39534.0,0.006]
[1646427551518,0.0100247,39536.0,39535.0,0.371264]
[1646427551717,0.2098247,39536.0,39535.0,0.58685282]
[1646427551917,0.2098247,39536.0,39535.0,0.88948499]
[1646427552119,0.2098247,39536.0,39535.0,1.66678499]
[1646427552317,0.2098247,39536.0,39535.0,0.30263217]
[1646427552518,0.2098247,39536.0,39535.0,0.371264]
[1646427552719,0.2098247,39536.0,39532.0,0.00047183]
[1646427552720,0.3100247,39536.0,39532.0,0.00047183]
[1646427552920,0.371264,39535.0,39532.0,0.00047183]
[1646427553524,0.063294,39535.0,39532.0,0.40461633]
[1646427553722,0.0100247,39536.0,39533.0,0.371264]
[1646427553723,0.0733097,39536.0,39533.0,0.371264]
[1646427553923,0.0100247,39536.0,39532.0,0.32412941]
[1646427554119,0.0100247,39536.0,39532.0,0.26085741]
[1646427554720,0.0100247,39536.0,39533.0,0.15448315]
[1646427555568,0.0100247,39536.0,39532.0,0.26085741]
[1646427555767,0.0100247,39536.0,39532.0,0.25885741]
[1646427556468,0.02395242,39536.0,39532.0,0.25885741]
[1646427556768,0.063276,39534.0,39533.0,0.371264]
[1646427557169,0.058276,39534.0,39533.0,0.371264]
[1646427557368,0.14996991,39550.0,39534.0,1.4]
[1646427557571,0.363067,39555.0,39540.0,0.15]
[1646427557572,0.253101,39553.0,39540.0,0.15]
[1646427557770,0.03815761,39559.0,39547.0,0.15]
[1646427557970,0.01101826,39563.0,39551.0,0.14]
[1646427558169,8.26e-06,39556.0,39555.0,0.14]
[1646427558368,8.26e-06,39556.0,39555.0,1.69871]
[1646427558569,8.26e-06,39556.0,39555.0,1.55871]
[1646427558823,8.26e-06,39556.0,39555.0,1.51178924]
[1646427559019,8.26e-06,39556.0,39555.0,1.50758126]
[1646427559420,8.26e-06,39556.0,39555.0,1.13610226]
[1646427559619,8.26e-06,39556.0,39555.0,1.50758126]
[1646427559819,8.26e-06,39556.0,39555.0,0.73028126]
[1646427562019,8.26e-06,39556.0,39555.0,1.05920243]
[1646427562217,8.26e-06,39556.0,39555.0,0.73028126]
[1646427562417,8.26e-06,39556.0,39555.0,0.31179046]
[1646427562672,8.26e-06,39556.0,39555.0,0.69216946]
[1646427563067,8.26e-06,39556.0,39555.0,0.371357]
[1646427563468,8.26e-06,39556.0,39555.0,0.418057]
[1646427563869,8.26e-06,39556.0,39555.0,0.426957]
[1646427564071,8.26e-06,39556.0,39555.0,0.118831]
[1646427564268,0.04321814,39558.0,39556.0,1.4]
[1646427564568,0.063231,39561.0,39558.0,0.27589059]
[1646427564770,0.063231,39561.0,39559.0,0.0467]
[1646427565169,0.063231,39561.0,39559.0,0.10993]
[1646427565370,0.063231,39561.0,39559.0,0.0467]
[1646427565777,0.063231,39561.0,39560.0,0.371357]
[1646427566175,0.063231,39561.0,39559.0,0.0467]
[1646427567028,0.063231,39561.0,39560.0,0.371357]
[1646427568031,0.063231,39561.0,39560.0,0.57486279]
[1646427568730,0.047451,39561.0,39560.0,0.57486279]
[1646427568931,0.00018575,39562.0,39560.0,0.57486279]
[1646427569134,0.126464,39565.0,39561.0,0.371357]
[1646427569331,0.00018575,39562.0,39561.0,0.418057]
[1646427569734,0.00018575,39562.0,39561.0,0.518057]
[1646427570163,0.00018575,39562.0,39561.0,0.1467]
[1646427570370,0.063231,39563.0,39561.0,0.04547952]
[1646427570563,0.06341675,39563.0,39561.0,0.063227]
[1646427570762,0.06341675,39563.0,39562.0,0.371357]
[1646427571465,0.063231,39563.0,39562.0,0.371357]
[1646427573914,0.063231,39563.0,39561.0,0.063225]
[1646427574113,0.063231,39563.0,39562.0,0.37416796]
[1646427574514,0.063231,39563.0,39562.0,0.00281096]
[1646427575115,0.063231,39563.0,39562.0,0.0012415]
[1646427575318,1.4,39562.0,39556.0,0.004]
[1646427575520,0.20520231,39560.0,39556.0,0.004]
[1646427575816,0.445763,39561.0,39547.0,0.29124327]
[1646427575817,0.23409323,39556.0,39547.0,0.29124327]
[1646427576016,0.28409323,39556.0,39548.0,0.7773]
[1646427576215,0.28409323,39556.0,39549.0,0.371357]
[1646427576414,0.28409323,39556.0,39548.0,0.7773]
[1646427576616,0.34735523,39556.0,39548.0,0.7773]
[1646427576833,0.063256,39554.0,39551.0,0.371357]
[1646427577016,0.063262,39556.0,39552.0,0.371357]
[1646427577317,0.063262,39556.0,39543.0,0.77783525]
[1646427577318,0.232508,39554.0,39543.0,0.00053525]
[1646427577571,0.105262,39556.0,39542.0,0.3]
[1646427577770,0.05,39553.0,39541.0,0.371357]
[1646427577970,0.105262,39556.0,39546.0,0.371357]
[1646427577971,0.06325,39551.0,39546.0,0.371357]
[1646427578171,0.06325,39551.0,39548.0,0.62730146]
[1646427578771,0.06325,39551.0,39548.0,0.371357]
[1646427578972,0.01193204,39550.0,39548.0,0.371357]
[1646427579375,0.01193204,39550.0,39549.0,0.371357]
[1646427580274,0.01193204,39550.0,39544.0,0.006]
[1646427580479,0.07518704,39550.0,39544.0,0.069255]
[1646427580674,0.07518704,39550.0,39545.0,0.371357]
[1646427581325,0.07518704,39550.0,39547.0,0.371357]
[1646427581523,0.07518704,39550.0,39548.0,0.371357]
[1646427581822,0.01101533,39549.0,39548.0,0.371357]
[1646427582027,0.063247,39553.0,39548.0,0.371357]
[1646427582323,0.01592653,39553.0,39551.0,0.7773]
[1646427582523,0.01028943,39551.0,39550.0,0.371357]
[1646427582721,0.126491,39558.0,39551.0,0.063244]
[1646427583122,0.126491,39558.0,39548.0,0.126481]
[1646427583123,0.12787097,39555.0,39548.0,0.126481]
[1646427583323,0.063246,39554.0,39548.0,0.126481]
[1646427583622,0.063246,39554.0,39550.0,0.371357]
[1646427583824,0.063246,39554.0,39553.0,0.22153102]
[1646427583825,0.126496,39554.0,39553.0,0.22153102]
[1646427584223,0.126496,39554.0,39548.0,0.126481]
[1646427584527,0.126496,39554.0,39547.0,0.004]
[1646427584723,0.26485347,39554.0,39547.0,0.004]
[1646427584925,0.126496,39554.0,39547.0,0.004]
[1646427585367,0.126496,39554.0,39548.0,0.371357]
[1646427585768,0.126496,39554.0,39549.0,0.434603]
[1646427585966,0.126496,39554.0,39549.0,0.69914666]
[1646427586167,0.126496,39554.0,39550.0,0.23184899]
[1646427586367,0.126496,39554.0,39551.0,0.371357]
[1646427586569,0.126496,39554.0,39548.0,0.005]
[1646427587172,0.13461484,39551.0,39548.0,0.005]
[1646427587367,0.50265063,39551.0,39548.0,0.005]
[1646427587569,0.50265063,39551.0,39544.0,0.1]
[1646427587768,0.50265063,39551.0,39545.0,0.371357]
[1646427587970,0.50265063,39551.0,39543.0,0.00048142]
[1646427588172,0.55265063,39551.0,39543.0,0.00048142]
[1646427588370,0.50265063,39551.0,39542.0,0.005]
[1646427588571,0.50265063,39551.0,39543.0,0.371357]
[1646427588572,0.063262,39549.0,39543.0,0.371357]
[1646427588819,0.063262,39548.0,39544.0,0.371357]
[1646427589118,0.063262,39548.0,39544.0,0.64000477]
[1646427589319,0.063262,39549.0,39544.0,0.434611]
[1646427589919,0.0029,39548.0,39544.0,0.434611]
[1646427590320,0.0029,39548.0,39545.0,0.3]
[1646427590520,0.0029,39548.0,39546.0,0.371357]
[1646427590720,0.0029,39548.0,39547.0,0.371357]
[1646427590919,0.0029,39548.0,39545.0,0.3]
[1646427591222,0.0029,39548.0,39544.0,0.371357]
[1646427591421,0.066157,39548.0,39544.0,0.371357]
[1646427591622,0.066157,39548.0,39543.0,0.00053526]
[1646427591623,0.126536,39547.0,39543.0,0.00053526]
[1646427591820,0.26072328,39547.0,39543.0,0.00053526]
[1646427592020,0.26072328,39547.0,39537.0,0.4]
[1646427592223,0.063266,39544.0,39538.0,0.371357]
[1646427592421,0.27569297,39542.0,39541.0,0.00053528]
[1646427592690,0.27569297,39542.0,39541.0,0.37189228]
[1646427593093,0.27569297,39542.0,39535.0,0.000125]
[1646427593094,0.04849293,39537.0,39535.0,0.000125]
[1646427593292,0.232508,39536.0,39535.0,0.000125]
[1646427593494,0.35056466,39536.0,39535.0,0.000125]
[1646427593695,0.95,39535.0,39532.0,0.00032124]
[1646427593893,0.05,39536.0,39523.0,0.20704346]
[1646427594090,0.05,39536.0,39522.0,0.48953489]
[1646427594091,0.05,39536.0,39522.0,0.20704346]
[1646427594291,0.2834843,39539.0,39523.0,0.3]
[1646427594292,0.126594,39534.0,39523.0,0.3]
[1646427594490,0.2834843,39539.0,39524.0,0.98434346]
[1646427594491,0.126598,39536.0,39524.0,0.98434346]
[1646427594690,0.126598,39536.0,39525.0,1.0773]
[1646427594691,0.05,39535.0,39525.0,1.0773]
[1646427594895,0.063287,39535.0,39525.0,1.0773]
[1646427595090,0.126598,39536.0,39529.0,0.30692709]
[1646427595291,0.126598,39536.0,39530.0,0.22295438]
[1646427595592,0.126598,39536.0,39531.0,0.371357]
[1646427595792,0.126598,39536.0,39530.0,0.22295438]
[1646427595993,0.063279,39535.0,39531.0,0.371357]
[1646427596193,0.063279,39535.0,39532.0,0.371357]
[1646427596424,0.063279,39535.0,39529.0,0.00013132]
[1646427596627,0.232508,39533.0,39529.0,0.00013132]
[1646427596826,0.282508,39533.0,39529.0,0.00013132]
[1646427597025,0.063295,39530.0,39522.0,0.15]
[1646427597226,0.063295,39530.0,39522.0,0.23170399]
[1646427597430,0.232508,39529.0,39528.0,0.00013132]
[1646427597731,0.063288,39529.0,39523.0,1.2273]
[1646427598127,0.063288,39529.0,39523.0,0.3]
[1646427598727,0.063288,39529.0,39521.0,0.15]
[1646427598930,0.063288,39529.0,39522.0,0.3]
[1646427599328,0.063288,39529.0,39522.0,0.1]
[1646427599528,0.18986,39530.0,39515.0,0.20704346]
[1646427599531,0.532508,39528.0,39515.0,0.20704346]
[1646427599729,0.532508,39528.0,39511.0,0.2034156]
[1646427599730,1.5,39527.0,39518.0,7.761e-05]
[1646427599932,1.5,39527.0,39508.0,0.20704346]
[1646427599933,0.232508,39524.0,39508.0,0.20704346]
[1646427600178,0.232508,39512.0,39506.0,0.20704346]
[1646427600373,0.232508,39512.0,39502.0,0.21416565]
[1646427600376,0.232508,39510.0,39502.0,0.21416565]
[1646427600576,0.232508,39510.0,39495.0,0.36138885]
[1646427600577,0.3,39511.0,39498.0,0.20704346]
[1646427600578,1.15,39508.0,39498.0,0.20704346]
[1646427600777,0.582508,39507.0,39493.0,0.91307835]
[1646427600975,0.745858,39507.0,39493.0,0.4479]
[1646427601181,0.063353,39504.0,39493.0,0.4479]
[1646427601381,0.532508,39503.0,39488.0,0.20704346]
[1646427601579,0.532508,39503.0,39484.0,1.16766187]
[1646427601580,0.28677436,39493.0,39487.0,0.20704346]
[1646427601775,0.4,39501.0,39486.0,0.20704346]
[1646427601975,0.126712,39493.0,39486.0,0.20704346]
[1646427602175,0.126712,39493.0,39490.0,0.371357]
[1646427602176,0.063353,39492.0,39490.0,0.371357]
[1646427602378,0.190056,39501.0,39494.0,0.21282852]
[1646427602578,0.113337,39500.0,39494.0,0.21282852]
[1646427602779,0.01545487,39499.0,39494.0,0.21282852]
[1646427603078,0.113337,39500.0,39495.0,0.24502576]
[1646427603376,0.113337,39500.0,39494.0,0.21282852]
[1646427603377,0.0122938,39495.0,39494.0,0.21282852]
[1646427603582,0.232508,39509.0,39497.0,0.28602154]
[1646427603844,0.176659,39505.0,39494.0,0.21282852]
[1646427604043,0.15288394,39503.0,39494.0,0.21282852]
[1646427604245,0.063331,39501.0,39494.0,0.21282852]
[1646427604445,0.063331,39501.0,39494.0,0.45459157]
[1646427604645,0.190007,39501.0,39499.0,0.00014012]
[1646427605244,0.063331,39501.0,39500.0,0.28602154]
[1646427606245,0.295839,39501.0,39500.0,0.28602154]
[1646427606846,0.3,39500.0,39497.0,0.00014362]
[1646427607049,0.232508,39499.0,39497.0,0.00014362]
[1646427607247,0.05,39499.0,39497.0,0.00014362]
[1646427607681,0.190036,39502.0,39497.0,0.00014362]
[1646427607682,0.063337,39502.0,39497.0,0.00014362]
[1646427607881,0.063337,39502.0,39494.0,0.36282852]
[1646427608085,0.063337,39502.0,39494.0,0.21296784]
[1646427608086,0.12161425,39500.0,39494.0,0.21296784]
[1646427608381,0.063337,39502.0,39494.0,0.21296784]
[1646427608780,0.232508,39501.0,39494.0,0.21296784]
[1646427609182,0.232508,39499.0,39498.0,0.37219598]
[1646427609783,0.58822149,39499.0,39498.0,0.37219598]
[1646427609982,0.46660324,39499.0,39498.0,0.37219598]
[1646427610185,0.45660324,39499.0,39498.0,0.37219598]
[1646427610785,0.45660324,39499.0,39495.0,0.00044187]
[1646427610786,0.35,39498.0,39495.0,0.00044187]
[1646427610988,0.222435,39497.0,39495.0,0.00044187]
[1646427611187,0.68358734,39497.0,39495.0,0.00044187]
[1646427611424,0.68358734,39497.0,39494.0,0.21282852]
[1646427611425,0.46115234,39497.0,39494.0,0.21282852]
[1646427612425,0.46115234,39497.0,39494.0,0.20782852]
[1646427612623,0.46115234,39497.0,39494.0,0.27759626]
[1646427613027,0.46115234,39497.0,39495.0,0.15]
[1646427613230,0.46115234,39497.0,39494.0,0.27759626]
[1646427613425,0.46115234,39497.0,39494.0,0.20782852]
[1646427613627,0.01285136,39495.0,39494.0,0.20782852]
[1646427613828,0.46115234,39497.0,39494.0,0.20782852]
[1646427614627,0.46115234,39497.0,39494.0,0.19892852]
[1646427614827,0.522435,39496.0,39494.0,0.19892852]
[1646427615077,0.222435,39495.0,39494.0,0.19392852]
[1646427615274,0.46115234,39497.0,39494.0,0.19392852]
[1646427615673,0.46115234,39497.0,39495.0,0.371825]
[1646427615877,0.46115234,39497.0,39494.0,0.19392852]
[1646427616273,0.46115234,39497.0,39495.0,0.371825]
[1646427616476,0.46115234,39497.0,39496.0,0.371825]
[1646427616675,0.46115234,39497.0,39495.0,0.23126362]
[1646427617073,0.46115234,39497.0,39494.0,0.25726764]
[1646427617074,0.46115234,39497.0,39494.0,0.53989229]
[1646427617474,0.46115234,39497.0,39494.0,0.47655317]
[1646427618924,0.46115234,39497.0,39494.0,0.37522155]
[1646427619326,0.46115234,39497.0,39495.0,0.66387251]
[1646427619526,0.46115234,39497.0,39496.0,0.821825]
[1646427619925,0.46115234,39497.0,39496.0,1.599125]
[1646427620129,0.001,39500.0,39499.0,0.25]
[1646427620327,0.001,39500.0,39499.0,1.25666554]
[1646427620629,0.06332,39516.0,39502.0,0.371825]
[1646427620828,0.29853672,39522.0,39512.0,0.15]
[1646427620829,0.38112277,39522.0,39512.0,0.15]
[1646427621036,0.38112277,39522.0,39508.0,0.25]
[1646427621037,0.23521772,39522.0,39519.0,0.15]
[1646427621426,0.23521772,39522.0,39520.0,0.22997409]
[1646427621630,0.0371184,39528.0,39518.0,0.25937787]
[1646427621631,0.222435,39527.0,39518.0,0.25937787]